bitfinex/quotes_ETHUSD_20241216
["timestamp","ask_amount","ask_price","bid_price","bid_amount"]
[1734382856224,0.55,4045.9,4043.5,0.02471701]
[1734382856496,0.55,4045.9,4044.8,3.0]
[1734382856774,0.55,4045.8,4043.5,0.02471701]
[1734382857273,0.55,4045.8,4043.6,0.02471702]
[1734382858227,0.55,4045.8,4043.7,0.02471887]
[1734382858870,0.55,4045.8,4044.4,3.0]
[1734382859378,0.55,4045.8,4043.7,0.02471885]
[1734382859533,0.55,4045.6,4043.4,0.14747679]
[1734382860171,0.55,4045.6,4044.3,3.0]
[1734382860385,0.55,4045.5,4042.9,1.03978758]
[1734382860598,0.55,4045.2,4042.4,1.01506767]
[1734382860754,0.55,4044.8,4042.5,0.02472846]
[1734382860956,0.55,4044.7,4042.5,0.02472846]
[1734382861160,0.55,4044.4,4043.4,0.0254]
[1734382861359,0.55,4044.2,4043.4,0.0254]
[1734382861746,0.55,4044.4,4043.4,0.0254]
[1734382862901,0.55,4044.0,4043.4,0.0254]
[1734382863137,0.55,4043.8,4043.4,0.0254]
[1734382863826,0.54258491,4043.9,4043.4,0.0254]
[1734382867021,0.54258491,4043.9,4043.4,0.0468]
[1734382868089,0.55,4043.8,4043.4,0.0468]
[1734382871588,0.54258491,4043.9,4043.4,0.0468]
[1734382873278,0.41234713,4043.8,4043.4,0.0468]
[1734382873480,1.32168166,4043.7,4043.4,0.0468]
[1734382873822,1.0926,4043.5,4043.4,0.0468]
[1734382874128,0.77905553,4043.5,4041.3,8.73]
[1734382874287,0.22905553,4043.4,4041.0,8.73]
[1734382874486,0.77905553,4043.3,4041.0,8.73]
[1734382874677,0.55,4043.1,4041.0,8.73]
[1734382874879,1.0458,4042.9,4041.0,8.73]
[1734382875112,0.22905553,4042.8,4041.0,8.73]
[1734382875281,0.55,4042.7,4041.0,8.73]
[1734382875813,0.4958,4042.9,4041.1,3.0]
[1734382875814,0.55,4042.8,4041.1,3.0]
[1734382876118,0.4958,4042.7,4041.1,3.0]
[1734382876319,0.13290555,4043.0,4041.1,11.73]
[1734382876320,0.55,4042.6,4041.1,11.73]
[1734382876524,1.14263276,4043.6,4040.4,1.76666767]
[1734382876525,0.55,4042.4,4040.6,8.73]
[1734382876691,0.55,4042.2,4040.6,8.73]
[1734382876895,0.55,4042.0,4040.6,8.73]
[1734382877925,0.55,4042.0,4040.7,0.02474396]
[1734382878094,0.4958,4042.1,4040.8,0.8754744]
[1734382878298,0.4958,4042.1,4040.8,0.90021339]
[1734382878607,0.4958,4042.1,4040.8,0.8754744]
[1734382879776,0.55,4042.0,4040.8,0.8754744]
[1734382880529,0.4958,4042.1,4040.9,0.02474022]
[1734382880693,0.13216817,4043.6,4040.9,0.02474022]
[1734382880694,0.4958,4042.6,4041.1,9.4816]
[1734382881027,0.4958,4042.6,4041.2,3.0]
[1734382882083,0.4958,4042.6,4041.1,9.4816]
[1734382882084,0.55,4042.5,4041.1,8.73]
[1734382882580,0.55,4042.3,4041.1,8.73]
[1734382882819,1.0458,4042.1,4041.1,8.73]
[1734382883012,0.55,4041.9,4040.0,8.73]
[1734382883182,0.55,4041.7,4039.8,8.73]
[1734382883395,0.55,4041.7,4039.9,8.73]
[1734382883590,0.55,4041.7,4040.0,0.873]
[1734382883793,0.55,4041.7,4040.1,0.02474471]
[1734382883996,0.55,4041.7,4040.0,0.873]
[1734382884281,0.55,4041.7,4040.0,3.873]
[1734382884584,0.55,4041.7,4040.0,3.89774294]
[1734382884801,0.55,4041.7,4040.1,0.98918924]
[1734382887291,0.4958,4041.8,4040.1,0.98918924]
[1734382887587,0.4958,4041.8,4040.5,3.0]
[1734382887788,0.4958,4041.8,4040.9,3.0]
[1734382887995,0.4958,4043.6,4041.1,3.0]
[1734382888219,0.22778879,4043.5,4041.2,0.02473674]
[1734382888422,0.4958,4043.4,4041.3,1.17547367]
[1734382888997,0.4958,4043.4,4041.4,8.75473667]
[1734382889227,0.4958,4043.4,4041.3,1.17547367]
[1734382889228,0.4958,4043.4,4041.7,3.0]
[1734382889821,0.4958,4043.4,4041.7,3.02473431]
[1734382890635,0.4958,4043.4,4043.0,3.0]
[1734382891146,0.4958,4043.4,4042.3,3.0]
[1734382891290,0.4958,4043.4,4042.4,0.3]
[1734382892645,0.4958,4044.7,4042.5,8.73]
[1734382892844,0.4958,4044.7,4042.6,3.02472618]
[1734382893199,0.4958,4044.7,4042.7,0.8138]
[1734382893392,0.4958,4044.7,4042.8,0.41144133]
[1734382893593,0.4958,4044.7,4042.8,0.38671557]
[1734382893994,0.4958,4044.7,4042.9,0.02472795]
[1734382894470,0.55,4044.6,4042.9,0.02472795]
[1734382894992,0.55,4044.6,4042.8,0.38671557]
[1734382895128,0.55,4044.6,4042.9,0.33867156]
[1734382895739,0.55,4044.6,4042.9,0.36339732]
[1734382896648,0.55,4044.6,4043.1,3.0]
[1734382897333,0.4958,4044.7,4043.4,8.73]
[1734382897575,0.4958,4044.7,4043.5,3.0]
[1734382897775,0.4958,4044.7,4043.6,0.83680211]
[1734382898267,0.4958,4044.7,4043.8,3.0]
[1734382899711,0.4958,4044.7,4043.9,0.02472316]
[1734382899978,0.4958,4045.8,4044.3,3.0]
[1734382900282,0.4958,4045.8,4044.3,11.73]
[1734382900572,0.4958,4045.8,4044.4,0.3]
[1734382901631,0.55,4045.7,4044.4,0.3]
[1734382902365,0.4958,4045.4,4043.7,8.73]
[1734382902677,0.12558217,4046.4,4042.9,1.15247156]
[1734382902678,0.55,4045.1,4043.1,8.73]
[1734382902970,0.55,4044.9,4043.1,8.73]
[1734382903173,0.55,4044.9,4043.2,0.02472515]
[1734382903738,0.55,4044.9,4043.2,3.02472515]
[1734382903939,0.55,4044.9,4043.3,1.17547252]
[1734382904537,0.55,4044.9,4043.2,3.0]
[1734382904538,0.55,4044.7,4043.2,3.0]
[1734382905778,0.55,4044.7,4042.9,0.33867156]
[1734382905779,0.55,4044.7,4043.4,3.0]
[1734382906233,0.55,4044.5,4043.3,8.73]
[1734382906437,0.55,4044.3,4042.3,8.73]
[1734382906668,0.55,4044.1,4042.3,8.73]
[1734382907649,0.55,4044.1,4042.4,3.0]
[1734382907888,0.55,4044.1,4042.4,3.02472849]
[1734382908206,0.55,4044.1,4042.4,3.0]
[1734382908348,0.55,4043.9,4042.0,8.73]
[1734382908550,0.55,4043.7,4042.0,9.603]
[1734382909519,0.55,4043.5,4042.1,8.73]
[1734382910218,0.55,4043.5,4042.2,3.02473245]
[1734382910419,0.55,4043.5,4042.2,3.0]
[1734382910972,0.4958,4043.6,4042.3,0.02473112]
[1734382912127,0.4958,4043.6,4042.4,1.15743941]
[1734382912336,0.4958,4043.6,4042.5,1.37389464]
[1734382913224,0.4958,4045.7,4042.6,8.73]
[1734382913375,0.4958,4045.5,4042.7,3.02472594]
[1734382913723,0.55,4045.0,4042.9,8.73]
[1734382913877,0.55,4044.8,4043.0,3.0]
[1734382914073,0.55,4044.8,4043.2,8.73]
[1734382914273,0.55,4044.8,4043.3,3.0]
[1734382914525,0.4958,4044.9,4043.3,3.0]
[1734382914750,0.4958,4044.9,4043.4,1.173]
[1734382915521,0.4958,4044.9,4043.6,3.0]
[1734382916722,0.55,4044.8,4043.6,3.0]
[1734382917236,0.4958,4044.5,4042.8,8.73]
[1734382917457,0.55,4044.6,4042.8,8.73]
[1734382917458,0.55,4044.2,4042.8,8.73]
[1734382917589,0.72455929,4044.1,4042.8,8.73]
[1734382917923,0.55,4043.8,4041.6,8.73]
[1734382918097,0.55,4043.6,4041.7,0.02473356]
[1734382918299,0.55,4043.4,4041.7,0.02473356]
[1734382918991,0.4958,4043.5,4041.7,0.27715521]
[1734382919324,0.4958,4043.5,4041.8,2.28229648]
[1734382919528,0.4958,4043.5,4041.9,4.18215387]
[1734382919737,0.4958,4043.5,4042.0,1.15742366]
[1734382919898,0.4958,4043.5,4042.1,1.18194188]
[1734382920232,0.4958,4043.5,4041.9,1.05123636]
[1734382920390,0.4958,4043.5,4042.0,0.50546027]
[1734382920590,0.4958,4043.5,4042.1,0.02472968]
[1734382922216,0.4958,4043.5,4042.2,8.73]
[1734382922420,0.4958,4043.5,4042.3,3.02472696]
[1734382922736,0.4958,4045.5,4042.5,3.0]
[1734382922921,0.12126164,4045.6,4042.6,0.37808819]
[1734382922922,0.4958,4045.3,4042.6,0.37808819]
[1734382923117,0.22894603,4045.2,4042.6,0.37808819]
[1734382923430,0.4958,4045.0,4042.6,0.37808819]
[1734382923616,0.55,4044.6,4042.7,8.73]
[1734382923821,0.55,4044.6,4042.8,3.02472559]
[1734382924023,0.55,4044.6,4042.9,1.00336637]
[1734382924199,0.55,4044.6,4043.0,0.02472559]
[1734382924422,0.4958,4044.5,4042.8,3.0]
[1734382924760,0.55,4044.2,4042.8,3.0]
[1734382925542,0.55,4044.2,4042.9,0.02472742]
[1734382925734,0.55,4044.2,4043.0,1.17547274]
[1734382925928,0.4958,4044.3,4043.2,3.0]
[1734382927212,0.4958,4044.3,4043.3,0.0247254]
[1734382927455,0.4958,4044.8,4043.6,11.73]
[1734382927639,0.4958,4044.8,4043.7,3.3333539]
[1734382927841,0.4958,4044.8,4043.7,3.35807346]
[1734382928018,0.4958,4044.8,4043.7,3.3333539]
[1734382930975,0.4958,4046.4,4044.0,8.73]
[1734382931271,0.22894391,4046.3,4044.1,3.02471579]
[1734382931429,0.4958,4046.1,4044.2,1.17547158]
[1734382931618,0.22894391,4046.0,4044.3,0.02471747]
[1734382932056,0.4958,4046.1,4044.3,0.02471747]
[1734382932398,0.22896604,4046.0,4044.3,0.02471747]
[1734382932597,0.4958,4045.9,4044.5,8.73]
[1734382932771,0.55,4045.6,4043.6,8.73]
[1734382932958,0.4958,4045.3,4043.7,8.73]
[1734382933155,0.55,4045.1,4043.7,8.73]
[1734382933488,0.55,4044.9,4043.7,8.73]
[1734382934780,0.4958,4045.0,4043.7,9.70605442]
[1734382935793,0.4958,4045.0,4043.8,8.73]
[1734382936355,0.4958,4045.8,4044.2,8.73]
[1734382936554,0.4958,4045.8,4044.4,3.0]
[1734382936794,0.4958,4045.8,4044.7,3.0]
[1734382936994,0.4958,4045.8,4044.7,3.02471517]
[1734382937297,0.4958,4045.8,4044.8,1.16112573]
[1734382937599,0.4958,4045.8,4044.7,4.0552594]
[1734382937803,0.4958,4045.8,4044.8,0.97605442]
[1734382938002,0.4958,4045.8,4044.8,2.13713474]
[1734382938294,0.4958,4045.8,4044.7,3.0]
[1734382938499,0.4958,4045.8,4044.4,8.73]
[1734382938698,0.55,4045.7,4044.4,8.73]
[1734382939065,0.4958,4045.4,4044.4,8.73]
[1734382939266,0.55,4045.7,4044.4,8.73]
[1734382939488,1.02402514,4046.4,4044.4,8.73]
[1734382939489,0.4958,4045.4,4044.4,8.73]
[1734382939700,0.55,4045.3,4044.4,8.73]
[1734382941783,0.55,4045.3,4044.1,3.0]
[1734382941988,0.55,4045.1,4044.1,3.0]
[1734382942385,0.55,4045.1,4044.1,11.73]
[1734382945292,0.55,4045.1,4043.6,1.03054419]
[1734382945293,0.55,4044.7,4043.5,8.73]
[1734382945500,0.55,4044.5,4043.5,8.73]
[1734382945799,0.55,4044.5,4043.5,9.603]
[1734382945999,0.55,4044.5,4043.5,9.91650498]
[1734382946212,0.4958,4044.6,4043.6,0.31350498]
[1734382946718,0.4958,4044.6,4043.6,3.31350498]
[1734382947816,0.4958,4044.6,4043.7,1.15530036]
[1734382948021,0.4958,4044.6,4043.8,0.98918924]
[1734382949915,0.4958,4044.6,4043.8,1.32741786]
[1734382950229,0.4958,4044.6,4043.8,1.30269422]
[1734382950519,0.4958,4044.6,4043.8,0.98918924]
[1734382950678,0.4958,4044.6,4043.8,9.71918924]
[1734382950879,0.4958,4044.6,4043.9,3.0]
[1734382952407,0.4958,4044.6,4043.9,3.873]
[1734382953131,2.04805028,4046.5,4043.9,3.873]
[1734382953132,0.4958,4046.0,4044.1,11.73]
[1734382953318,0.41182297,4045.9,4044.2,1.1802594]
[1734382953524,0.4958,4046.0,4044.3,6.17517759]
[1734382953677,0.22883933,4045.9,4044.4,4.15544416]
[1734382953883,0.22883933,4045.9,4044.3,0.98918924]
[1734382954084,0.4958,4046.0,4044.3,0.98918924]
[1734382954085,0.41190963,4045.8,4044.3,0.98918924]
[1734382954426,0.4958,4046.0,4044.4,0.873]
[1734382954427,0.41191812,4045.7,4044.4,0.873]
[1734382954632,0.4958,4046.0,4044.4,0.873]
[1734382954805,0.41193061,4045.9,4044.4,0.873]
[1734382955006,0.4958,4045.7,4044.2,3.0]
[1734382955343,1.14914918,4046.5,4044.2,3.0]
[1734382955344,0.4958,4045.5,4044.2,3.0]
[1734382955528,0.55,4045.4,4044.1,8.73]
[1734382955735,0.55,4045.2,4044.1,8.73]
[1734382955934,0.55,4045.2,4043.1,3.01267235]
[1734382955935,0.4958,4045.0,4043.8,8.73]
[1734382956747,0.4958,4045.0,4043.9,3.0]
[1734382956748,0.22889375,4044.9,4043.9,3.0]
[1734382957358,1.0458,4045.0,4043.8,8.73]
[1734382957651,0.1328888,4045.1,4043.8,8.73]
[1734382957652,0.4958,4044.8,4043.8,8.73]
[1734382957846,0.4958,4044.8,4043.8,0.873]
[1734382958666,0.4958,4044.8,4043.8,1.21122793]
[1734382958811,0.4958,4044.8,4043.9,1.34404917]
[1734382960206,0.4958,4044.8,4044.0,1.03054419]
[1734382960857,0.4958,4044.8,4044.0,1.34404917]
[1734382961016,0.4958,4044.8,4044.2,9.76054419]
[1734382961208,0.4958,4045.3,4044.3,3.33822647]
[1734382961603,0.4958,4045.3,4044.5,1.03054419]
[1734382961850,0.4958,4046.4,4044.7,3.0]
[1734382962062,0.4958,4046.4,4044.8,0.02471673]
[1734382962063,0.4121367,4046.3,4044.8,0.02471673]
[1734382962361,0.4121367,4046.2,4044.7,3.0]
[1734382962566,0.4958,4046.0,4044.7,3.0]
[1734382962702,0.4121367,4045.9,4044.6,8.73]
[1734382962906,0.22896483,4045.8,4044.6,8.73]
[1734382963169,0.4958,4046.0,4044.6,8.73]
[1734382963351,0.18315883,4045.9,4044.7,1.3142767]
[1734382963523,0.4958,4046.0,4044.7,4.3142767]
[1734382963714,0.4958,4046.0,4044.7,5.34481879]
[1734382964243,0.4958,4046.0,4044.8,4.03054419]
[1734382964560,0.4958,4046.0,4044.9,2.23018399]
[1734382965052,0.4958,4046.0,4045.0,1.03054419]
[1734382965352,0.4958,4046.0,4045.2,1.03054419]
[1734382965675,1.70448661,4047.2,4045.5,8.73]
[1734382965676,0.4958,4046.9,4045.5,8.73]
[1734382965850,0.22884216,4046.8,4045.6,4.2895594]
[1734382966037,0.4958,4046.9,4045.6,4.2895594]
[1734382966220,0.4958,4046.9,4045.7,0.02471051]
[1734382966422,0.4958,4046.9,4045.7,0.31350498]
[1734382966632,0.4958,4046.9,4045.8,0.88613482]
[1734382967026,0.4958,4046.9,4045.9,0.31350498]
[1734382967356,0.4958,4046.9,4046.1,3.0]
[1734382967554,0.1684489,4047.2,4046.1,3.0]
[1734382967555,0.1684489,4047.2,4046.3,4.03054419]
[1734382967759,0.1684489,4047.2,4046.6,1.03054419]
[1734382967909,0.1684489,4047.2,4046.7,1.03054419]
[1734382968110,0.1684489,4047.2,4046.7,3.0]
[1734382968307,0.1684489,4047.2,4046.6,1.34404917]
[1734382968556,0.1684489,4047.2,4046.6,0.31350498]
[1734382971066,0.1684489,4047.2,4046.5,3.0]
[1734382971220,0.1684489,4047.2,4046.6,1.27605442]
[1734382971836,0.1684489,4047.2,4046.8,3.0]
[1734382972160,0.1684489,4047.2,4046.7,8.73]
[1734382974866,0.1684489,4047.2,4046.8,8.73]
[1734382976786,0.1684489,4047.2,4046.9,3.02470541]
[1734382976951,1.53603771,4050.2,4047.0,0.7802]
[1734382976952,0.4958,4050.2,4047.0,0.7802]
[1734382977159,0.4958,4050.0,4047.1,3.65725141]
[1734382977395,0.4958,4049.8,4047.1,3.65725141]
[1734382977595,0.4958,4049.8,4047.1,3.65395141]
[1734382978406,0.18183822,4049.7,4047.1,3.0]
[1734382978551,0.4958,4049.6,4047.2,1.173]
[1734382978758,0.55,4049.3,4047.4,3.0]
[1734382979057,0.55,4049.0,4047.4,3.0]
[1734382979267,0.55,4049.0,4047.3,8.73]
[1734382979268,0.55,4048.8,4047.3,8.73]
[1734382979486,0.55,4048.6,4047.4,3.0]
[1734382979765,0.55,4048.6,4047.4,3.68918924]
[1734382980095,0.55,4048.6,4047.3,8.73]
[1734382980307,0.4958,4048.3,4046.6,8.73]
[1734382980453,0.55,4048.2,4046.6,8.73]
[1734382981299,0.55,4048.0,4046.6,8.73]
[1734382981604,0.55,4048.0,4046.7,3.0]
[1734382982785,0.55,4048.0,4046.8,8.73]
[1734382983203,0.55,4047.8,4046.8,8.73]
[1734382985691,0.4958,4047.9,4046.9,3.0]
[1734382985856,0.4958,4047.9,4046.9,3.31350498]
[1734382986056,0.4958,4047.9,4046.9,3.0]
[1734382986307,0.4958,4047.9,4047.0,1.173]
[1734382986666,0.4958,4047.9,4046.5,8.73]
[1734382987505,0.55,4047.8,4046.5,8.73]
[1734382987805,0.55,4048.2,4046.5,8.73]
[1734382988118,0.4958,4047.7,4046.6,3.0]
[1734382988404,0.55,4047.6,4046.1,3.0]
[1734382988610,0.55,4047.6,4046.6,0.31350498]
[1734382988907,0.55,4047.6,4046.2,1.51785548]
[1734382989074,0.4958,4047.5,4046.1,3.0]
[1734382989280,0.55,4047.4,4046.1,3.0]
[1734382990467,0.55,4047.2,4046.1,3.0]
[1734382991061,0.4958,4047.1,4045.7,8.73]
[1734382991293,0.55,4047.0,4045.7,8.73]
[1734382991569,0.55,4046.8,4045.7,8.73]
[1734382991894,0.55,4046.6,4044.9,8.73]
[1734382992121,0.55,4046.6,4045.0,0.91555808]
[1734382993029,0.55,4046.6,4045.2,3.0]
[1734382993419,0.55,4046.6,4045.4,3.0]
[1734382993785,0.55,4046.6,4045.5,0.02471404]
[1734382993988,0.4958,4046.7,4045.6,1.57918502]
[1734382994224,0.4958,4046.7,4045.7,0.024711]
[1734382994723,0.4958,4046.7,4045.7,0.31350498]
[1734382995229,0.4958,4046.7,4045.7,0.33821556]
[1734382995426,0.4958,4046.7,4045.8,0.20618467]
[1734382998584,0.4958,4048.4,4046.0,3.0]
[1734382998789,0.55,4048.1,4046.0,3.0]
[1734382999022,0.55,4047.7,4046.0,3.0]
[1734382999226,0.4958,4047.5,4046.0,3.0]
[1734382999428,3.09350303,4048.2,4046.0,3.0]
[1734382999429,0.4958,4047.2,4046.0,3.0]
[1734382999599,0.55,4047.1,4046.0,3.0]
[1734383000043,0.4958,4047.2,4046.0,3.0]
[1734383000621,0.4958,4047.2,4046.1,0.33821362]
[1734383000798,0.4958,4047.2,4046.3,3.0]
[1734383002211,0.4958,4047.2,4046.3,3.02470865]
[1734383002409,0.4958,4047.2,4046.6,3.0]
[1734383002934,2.54791942,4049.8,4046.6,3.0]
[1734383002935,0.4958,4049.1,4046.8,3.0]
[1734383003106,0.41133631,4049.0,4046.9,0.02470169]
[1734383003322,0.90713631,4048.9,4047.0,1.20682067]
[1734383003507,0.41133631,4048.8,4047.0,1.20682067]
[1734383003714,0.41133631,4048.7,4047.0,1.20682067]
[1734383003900,0.41133631,4048.6,4047.0,1.20682067]
[1734383004100,1.0458,4048.4,4047.1,0.45450273]
[1734383004323,1.0458,4048.4,4046.8,3.33820667]
[1734383005345,1.0458,4048.4,4047.0,3.0]
[1734383005346,0.55,4048.1,4047.0,3.0]
[1734383005693,0.55,4047.9,4046.9,8.73]
[1734383006742,0.4958,4048.0,4047.0,0.33821136]
[1734383006896,0.4958,4048.0,4047.1,9.66872602]
[1734383007107,0.4958,4048.0,4047.1,9.982231]
[1734383007845,0.4958,4048.0,4047.1,9.66872602]
[1734383010336,0.4958,4048.0,4047.2,3.0]
[1734383010862,0.4958,4048.0,4047.3,8.73]
[1734383011047,0.4958,4048.0,4047.4,0.92346322]
[1734383012148,0.4958,4048.0,4047.4,3.92346322]
[1734383012811,0.4958,4048.0,4047.5,8.73]
[1734383013006,3.0,4049.8,4047.8,3.0]
[1734383013007,0.4958,4049.2,4047.8,3.0]
[1734383013251,0.4958,4049.2,4047.9,0.31350498]
[1734383013252,0.41160372,4049.1,4047.9,0.31350498]
[1734383013454,0.4958,4049.2,4048.0,0.90682028]
[1734383013830,0.4958,4049.2,4048.1,8.75469769]
[1734383014013,0.4958,4049.2,4048.2,8.73]
[1734383014211,0.4958,4049.2,4048.3,0.02469493]
[1734383014452,0.4958,4049.2,4048.4,0.95536896]
[1734383015883,1.02402514,4050.7,4048.5,8.73]
[1734383016068,0.72421887,4050.6,4048.7,1.03054419]
[1734383016267,0.72421887,4050.6,4048.6,3.81338361]
[1734383016268,0.4958,4050.6,4048.8,1.03054419]
[1734383016469,0.22820226,4050.5,4048.9,0.48439277]
[1734383016770,0.4958,4050.3,4048.6,1.48957737]
[1734383017580,0.55,4050.2,4048.6,1.48957737]
[1734383017783,0.55,4050.4,4048.6,1.48957737]
[1734383017944,0.55,4050.2,4048.6,1.51426868]
[1734383018144,0.55,4050.2,4048.7,0.90682028]
[1734383018442,0.55,4050.2,4048.7,1.22032526]
[1734383019762,0.55,4050.2,4048.8,8.73]
[1734383020164,0.55,4050.0,4048.8,8.73]
[1734383020481,0.55,4049.8,4048.9,8.73]
[1734383023282,0.4958,4049.7,4048.9,8.73]
[1734383024205,0.4958,4049.7,4048.9,9.603]
[1734383024782,0.4958,4049.5,4048.2,8.73]
[1734383024982,0.55,4049.4,4048.2,8.73]
[1734383025397,0.4958,4049.5,4048.3,0.02469571]
[1734383025611,0.4958,4049.5,4048.4,0.87546957]
[1734383026801,0.55,4049.4,4048.4,0.87546957]
[1734383027197,0.55,4049.4,4048.2,8.73]
[1734383027373,0.4958,4049.5,4048.2,8.73]
[1734383027707,0.4958,4049.5,4048.3,0.31350498]
[1734383028596,0.4958,4049.5,4048.3,3.31350498]
[1734383028798,0.4958,4049.5,4048.4,8.73]
[1734383029006,0.4958,4049.5,4048.5,4.229044]
[1734383029331,0.55,4049.4,4048.4,8.73]
[1734383030245,0.55,4049.4,4047.8,3.0]
[1734383030246,0.55,4049.0,4047.8,8.73]
[1734383030614,0.55,4048.6,4047.1,8.73]
[1734383030804,0.4958,4048.9,4047.1,8.73]
[1734383031007,3.0,4049.4,4047.1,8.73]
[1734383031008,0.55,4048.6,4047.1,8.73]
[1734383031202,0.55,4048.4,4047.1,8.73]
[1734383031401,0.55,4048.0,4046.6,8.73]
[1734383031632,0.55,4047.8,4046.6,8.73]
[1734383034326,0.55,4047.8,4046.7,3.0]
[1734383035063,0.55,4047.8,4046.7,11.73]
[1734383035367,0.55,4047.8,4046.8,1.173]
[1734383037466,0.55,4047.8,4046.7,11.73]
[1734383037969,0.55,4047.8,4046.9,3.0]
[1734383038268,0.4958,4047.9,4046.9,3.0]
[1734383040571,0.4958,4047.7,4046.8,8.73]
[1734383040775,0.12153038,4049.0,4045.9,8.73]
[1734383040776,0.55,4047.6,4045.9,8.73]
[1734383040931,2.50921996,4047.9,4045.2,2.57032829]
[1734383040932,0.4958,4047.2,4046.0,8.73]
[1734383041139,1.0458,4047.1,4046.0,8.73]
[1734383041373,0.4958,4047.0,4045.0,8.73]
[1734383041534,0.55,4046.7,4045.1,9.603]
[1734383041881,0.4958,4046.4,4045.1,9.603]
[1734383042095,0.4958,4046.2,4045.1,9.603]
[1734383042237,0.55,4046.1,4045.1,9.603]
[1734383042574,0.55,4046.1,4045.2,8.73]
[1734383046078,0.4958,4046.2,4045.3,0.63255386]
[1734383046266,0.55,4046.1,4045.2,8.73]
[1734383046977,0.55,4046.1,4044.9,8.73]
[1734383047153,0.4958,4046.2,4045.3,0.31350498]
[1734383047357,0.4958,4046.2,4045.2,0.873]
[1734383047551,0.4958,4046.2,4045.0,3.0]
[1734383048695,0.4958,4046.2,4044.4,0.31350498]
[1734383048696,0.4958,4046.0,4044.4,0.31350498]
[1734383048858,0.4958,4046.0,4043.1,0.7861]
[1734383048859,0.55,4044.8,4043.3,8.73]
[1734383049054,2.50921996,4044.9,4043.3,8.73]
[1734383049055,0.55,4044.4,4043.3,8.73]
[1734383049301,0.55,4044.6,4043.3,8.73]
[1734383049302,0.4958,4044.2,4043.3,8.73]
[1734383049600,0.305922,4044.7,4042.2,0.7861]
[1734383049601,0.55,4043.9,4042.7,8.73]
[1734383049800,0.55,4043.9,4042.8,8.73]
[1734383052549,0.55,4043.5,4042.4,3.0]
[1734383053704,0.55,4043.3,4042.4,3.0]
[1734383054025,0.4958,4043.4,4042.4,3.0]
[1734383054188,0.4958,4043.4,4042.5,1.173]
[1734383055342,0.55,4043.3,4042.4,3.0]
[1734383055688,0.55,4043.1,4041.5,8.73]
[1734383055917,0.55,4043.1,4041.6,8.73]
[1734383056122,0.55,4042.6,4040.8,8.73]
[1734383056288,0.55,4042.4,4040.9,8.73]
[1734383056634,0.55,4042.4,4040.2,0.8159]
[1734383056635,0.4958,4042.1,4040.4,8.73]
[1734383056945,0.4958,4041.9,4040.4,8.73]
[1734383057311,0.55,4041.8,4040.4,8.73]
[1734383058692,0.4958,4041.9,4040.5,3.02474183]
[1734383058947,0.4958,4041.9,4040.5,3.97933183]
[1734383060112,0.4958,4041.9,4040.5,3.95459]
[1734383060509,0.4958,4041.9,4040.5,3.97933061]
[1734383061449,0.4958,4041.9,4040.5,3.97933067]
[1734383061621,0.4958,4041.9,4040.6,0.90759924]
[1734383061811,0.4958,4041.9,4040.8,3.0]
[1734383062123,0.4958,4041.9,4040.7,8.73]
[1734383062124,0.4958,4041.7,4040.7,8.73]
[1734383062322,0.55,4041.8,4039.4,8.73]
[1734383062323,0.4958,4041.3,4039.4,8.73]
[1734383062520,0.55,4041.8,4039.4,8.73]
[1734383062521,0.55,4041.0,4039.4,8.73]
[1734383062723,0.55,4040.8,4039.4,8.73]
[1734383062938,0.55,4040.8,4039.5,0.95624]
[1734383064360,0.4958,4040.9,4039.5,0.95624]
[1734383064361,0.4958,4040.9,4039.5,3.95624]
[1734383066021,0.4958,4040.9,4039.6,0.0247478]
[1734383067993,0.4958,4040.9,4039.8,3.0]
[1734383068216,0.4958,4040.9,4039.9,0.02474447]
[1734383068381,0.4958,4040.9,4040.0,0.28665924]
[1734383068772,0.55,4040.6,4039.7,8.73]
[1734383068988,0.4958,4040.7,4039.7,8.73]
[1734383069177,0.55,4040.8,4039.7,8.73]
[1734383069407,0.4958,4040.7,4039.7,8.73]
[1734383069547,0.55,4040.4,4039.1,8.73]
[1734383069753,0.55,4040.4,4039.1,10.22229]
[1734383070774,0.55,4040.4,4039.2,3.0]
[1734383070978,0.4958,4040.5,4039.2,3.0]
[1734383071447,0.4958,4040.5,4039.1,10.22229]
[1734383071448,150.0,4039.5,4039.4,11.73]
[1734383072415,150.4958,4039.5,4039.4,11.73]
[1734383073808,150.0,4039.5,4039.4,12.903]
[1734383080772,150.0,4039.5,4039.4,11.73]
[1734383080938,150.0,4039.5,4039.4,8.73]
[1734383082404,150.0,4039.5,4039.4,11.73]
[1734383085204,150.0,4039.5,4037.5,5.62711675]
[1734383085205,0.4958,4039.4,4037.6,8.73]
[1734383085359,2.96685918,4039.3,4037.7,8.73]
[1734383085670,0.41071997,4039.2,4037.7,8.73]
[1734383085878,1.0458,4039.0,4037.6,8.73]
[1734383086040,1.45661049,4039.0,4037.6,8.73]
[1734383086249,1.45661049,4039.0,4038.9,4.36105733]